bitfinex-derivatives/quotes_SOLF0:USTF0_20240927
["timestamp","ask_amount","ask_price","bid_price","bid_amount"]
[1727457792682,68.6,157.69,157.61,15.25]
[1727457793178,68.6,157.69,157.6,1.3331]
[1727457793574,15.25,157.68,157.6,1.3331]
[1727457793883,3.15380792,157.67,157.6,1.3331]
[1727457794277,3.1708,157.63,157.6,4.5045]
[1727457794780,3.15380792,157.67,157.6,4.5045]
[1727457795077,3.15380792,157.67,157.6,1.3331]
[1727457795282,68.6,157.69,157.61,15.25]
[1727457795976,15.25,157.7,157.61,15.25]
[1727457796283,108.60153398,157.73,157.63,15.25]
[1727457796679,15.25,157.71,157.62,1.3842]
[1727457797183,15.25,157.71,157.62,4.5552]
[1727457797585,3.1705,157.65,157.62,4.5552]
[1727457797784,15.25,157.71,157.63,3.1708]
[1727457797980,15.25,157.71,157.62,1.3842]
[1727457798482,108.60153398,157.73,157.63,15.25]
[1727457798878,3.1702,157.66,157.63,18.4207]
[1727457799080,15.25,157.71,157.62,1.3842]
[1727457799487,3.1706,157.65,157.62,1.3842]
[1727457800887,3.1706,157.65,157.62,4.5552]
[1727457801085,3.1706,157.65,157.62,1.3842]
[1727457801786,3.1703,157.66,157.62,1.3842]
[1727457801987,15.25,157.71,157.62,1.3842]
[1727457802480,3.1705,157.65,157.62,1.3842]
[1727457803183,3.1707,157.64,157.62,1.3842]
[1727457803487,15.25,157.67,157.6,1.3331]
[1727457803679,15.25,157.65,157.56,17.8416]
[1727457804286,3.1714,157.61,157.57,3.172]
[1727457804784,15.25,157.65,157.57,3.172]
[1727457804989,3.1714,157.61,157.57,3.172]
[1727457805287,3.15254068,157.67,157.58,15.25]
[1727457805491,15.25,157.67,157.58,15.25]
[1727457805792,15.25,157.65,157.57,1.2661]
[1727457805993,3.1714,157.61,157.57,1.2661]
[1727457806691,3.1714,157.6,157.57,4.438]
[1727457806892,15.25,157.65,157.57,4.438]
[1727457807193,15.25,157.65,157.58,3.1718]
[1727457807497,3.1712,157.62,157.58,3.1718]
[1727457807694,15.25,157.65,157.58,3.1718]
[1727457808488,15.25,157.65,157.57,4.4381]
[1727457808690,15.25,157.65,157.57,1.2661]
[1727457809097,15.25,157.65,157.57,4.438]
[1727457809688,3.1715,157.6,157.57,4.438]
[1727457810100,15.25,157.65,157.57,1.2661]
[1727457810496,15.25,157.61,157.51,15.25]
[1727457810695,15.25,157.61,157.55,3.1724]
[1727457810900,3.1718,157.59,157.55,3.1724]
[1727457811493,3.1719,157.58,157.54,3.1726]
[1727457811708,15.25,157.64,157.53,15.25]
[1727457812004,15.25,157.59,157.51,17.8791]
[1727457812198,3.15060046,157.58,157.51,17.8791]
[1727457812394,3.1723,157.56,157.52,3.173]
[1727457812600,3.15060046,157.58,157.52,3.173]
[1727457812998,3.1724,157.56,157.52,3.173]
[1727457813500,15.25,157.63,157.54,15.25]
[1727457813707,15.25,157.65,157.54,15.25]
[1727457813901,15.25,157.65,157.57,3.172]
[1727457814101,15.25,157.65,157.56,15.25]
[1727457814300,15.25,157.65,157.57,3.1719]
[1727457814498,3.1714,157.61,157.56,15.25]
[1727457815401,3.1714,157.61,157.57,3.1719]
[1727457816003,3.20874114,157.66,157.58,15.25]
[1727457816201,15.25,157.68,157.58,15.25]
[1727457816409,15.25,157.68,157.59,3.1715]
[1727457816907,15.25,157.68,157.58,16.6186]
[1727457817105,15.25,157.68,157.6,3.1713]
[1727457817705,15.25,157.68,157.58,16.6186]
[1727457818011,15.25,157.66,157.58,1.3686]
[1727457818217,3.1716,157.6,157.58,1.3686]
[1727457818418,3.1716,157.6,157.57,4.5383]
[1727457818419,15.25,157.62,157.57,1.3664]
[1727457818614,15.25,157.62,157.54,15.25]
[1727457818809,3.1719,157.58,157.55,3.1723]
[1727457819020,15.25,157.6,157.53,2.6649]
[1727457819315,3.1727,157.54,157.51,3.1732]
[1727457820113,15.25,157.65,157.52,15.25]
[1727457820322,3.15370784,157.63,157.56,15.25]
[1727457820712,3.15370784,157.63,157.57,3.172]
[1727457821113,3.13624896,157.63,157.57,3.172]
[1727457821421,3.17910257,157.64,157.57,3.172]
[1727457821621,15.25,157.65,157.57,3.172]
[1727457822025,3.1713,157.61,157.57,3.172]
[1727457824726,15.25,157.63,157.56,3.1722]
[1727457825116,3.19973578,157.65,157.54,3.1726]
[1727457825117,15.25,157.61,157.54,3.1726]
[1727457825321,15.25,157.63,157.54,15.25]
[1727457825522,3.1713,157.61,157.58,3.1717]
[1727457825718,3.219664,157.64,157.58,15.25]
[1727457826026,1.3361,157.66,157.58,15.25]
[1727457826220,3.1711,157.62,157.59,3.1715]
[1727457826421,1.3361,157.66,157.58,15.25]
[1727457826826,3.1709,157.63,157.6,3.1713]
[1727457827426,3.1709,157.63,157.61,3.1712]
[1727457827623,3.21839926,157.66,157.6,15.25]
[1727457827935,2.3658,157.72,157.66,3.1701]
[1727457828127,1.2729,157.72,157.66,15.25]
[1727457828730,3.1697,157.69,157.66,18.4202]
[1727457829024,1.2729,157.72,157.64,15.25]
[1727457829224,1.2729,157.72,157.64,3.1706]
[1727457829225,3.1701,157.67,157.64,3.1706]
[1727457830230,3.1699,157.68,157.65,3.1704]
[1727457832037,3.17,157.67,157.64,3.1705]
[1727457832526,3.20074096,157.74,157.64,15.25]
[1727457832731,3.22364037,157.75,157.69,15.25]
[1727457832925,15.25,157.76,157.65,3.918]
[1727457833130,3.1688,157.74,157.67,18.4199]
[1727457833332,3.10118969,157.76,157.69,15.25]
[1727457833632,1.3002,157.79,157.71,15.25]
[1727457833933,3.19507863,157.78,157.72,3.1689]
[1727457834230,3.19507863,157.78,157.71,15.25]
[1727457834231,1.3002,157.79,157.71,15.25]
[1727457834631,4.47783305,157.79,157.71,15.25]
[1727457835325,19.72783305,157.79,157.69,15.25]
[1727457835828,15.25,157.77,157.67,15.25]
[1727457836427,3.1691,157.72,157.67,15.25]
[1727457836632,3.1691,157.72,157.69,3.1695]
[1727457836833,15.25,157.77,157.67,15.25]
[1727457837131,15.25,157.77,157.69,15.25]
[1727457837534,3.169,157.72,157.7,3.1694]
[1727457837728,3.169,157.72,157.69,15.25]
[1727457838139,3.1693,157.71,157.69,15.25]
[1727457838345,15.25,157.75,157.65,19.168]
[1727457838535,15.25,157.71,157.65,1.2829]
[1727457838834,3.16944791,157.7,157.61,15.25]
[1727457839537,3.1703,157.66,157.63,3.1708]
[1727457840241,3.16944791,157.7,157.62,3.171]
[1727457840636,24.36,157.72,157.62,3.171]
[1727457841042,3.1704,157.65,157.62,3.171]
[1727457841731,3.1706,157.64,157.61,3.1711]
[1727457841935,1.2543,157.71,157.61,3.1711]
[1727457842238,4.46639367,157.71,157.61,3.1711]
[1727457842439,3.1704,157.66,157.62,3.171]
[1727457842651,4.46639367,157.71,157.59,25.7111]
[1727457842945,3.1701,157.67,157.63,3.1707]
[1727457843341,4.46639367,157.71,157.61,24.36]
[1727457843641,3.1695,157.7,157.66,3.1702]
[1727457844450,3.1697,157.69,157.65,3.1704]
[1727457844639,25.4518,157.74,157.61,24.36]
[1727457844838,3.1703,157.66,157.59,25.7111]
[1727457845037,3.1703,157.66,157.62,3.1708]
[1727457845245,3.09693811,157.7,157.62,3.1708]
[1727457845438,3.1703,157.66,157.62,3.1708]
[1727457845639,3.22446496,157.7,157.62,3.1708]
[1727457845838,24.36,157.72,157.59,25.7111]
[1727457846044,3.1707,157.64,157.59,25.7111]
[1727457846240,1.0918,157.74,157.59,1.3511]
[1727457846241,3.12708073,157.67,157.59,1.3511]
[1727457846542,24.36,157.69,157.59,1.3511]
[1727457846743,3.171,157.62,157.59,4.5227]
[1727457847148,27.47819878,157.69,157.59,1.3511]
[1727457847339,24.36,157.66,157.59,1.3511]
[1727457847734,24.36,157.66,157.54,24.36]
[1727457847943,24.36,157.66,157.55,1.2582]
[1727457848246,3.1715,157.6,157.57,4.5097]
[1727457848551,3.1716,157.59,157.57,1.3377]
[1727457848842,27.53783472,157.66,157.57,1.3377]
[1727457849044,24.36,157.63,157.55,1.2582]
[1727457849847,27.52773709,157.63,157.55,1.2582]
[1727457850050,27.52773709,157.63,157.52,1.3046]
[1727457850540,3.1721,157.57,157.54,3.1726]
[1727457850738,24.36,157.59,157.5,1.3511]
[1727457851237,74.8617,157.64,157.5,1.3511]
[1727457851443,24.36,157.61,157.5,1.3511]
[1727457851640,3.20327972,157.61,157.51,1.3046]
[1727457851840,92.88,157.64,157.51,2.6111]
[1727457852046,3.16100882,157.63,157.53,24.36]
[1727457852343,68.52,157.64,157.53,24.36]
[1727457852746,3.1714,157.61,157.56,3.1721]
[1727457853044,71.62672759,157.64,157.56,3.1721]
[1727457853451,3.1716,157.6,157.56,3.1721]
[1727457853749,71.62672759,157.64,157.55,3.1724]
[1727457854045,71.62672759,157.64,157.51,2.6111]
[1727457854046,24.36,157.62,157.51,2.6111]
[1727457855042,24.36,157.62,157.53,3.1727]
[1727457855554,3.172,157.57,157.53,3.1727]
[1727457855944,24.36,157.62,157.53,3.1727]
[1727457856148,3.1722,157.56,157.52,3.173]
[1727457856552,3.1722,157.56,157.51,2.6111]
[1727457856953,3.1722,157.56,157.52,3.173]
[1727457857141,3.1724,157.55,157.52,3.173]
[1727457857451,3.1724,157.55,157.51,2.6111]
[1727457857657,3.1724,157.55,157.51,5.7842]
[1727457857853,24.36,157.62,157.51,1.3046]
[1727457858053,2.4723,157.61,157.51,1.3046]
[1727457858648,3.1726,157.55,157.51,4.4778]
[1727457859752,3.1726,157.54,157.51,4.4778]
[1727457861249,3.1725,157.55,157.51,4.4778]
[1727457863460,3.1725,157.55,157.52,3.173]
[1727457863957,3.1725,157.55,157.51,4.4777]
[1727457864163,3.1727,157.54,157.51,1.3046]
[1727457864365,2.4723,157.61,157.51,1.3046]
[1727457864560,2.4723,157.61,157.51,4.4778]
[1727457864868,3.1726,157.55,157.51,4.4778]
[1727457865366,2.4723,157.61,157.51,1.3046]
[1727457865864,3.1724,157.56,157.52,3.1729]
[1727457866255,2.4723,157.61,157.52,3.1729]
[1727457866557,2.4723,157.61,157.51,1.3046]
[1727457866867,24.36,157.57,157.45,24.36]
[1727457867061,24.36,157.55,157.45,4.4864]
[1727457867261,24.36,157.55,157.45,1.3122]
[1727457867462,3.1739,157.48,157.45,4.4865]
[1727457867768,24.36,157.55,157.45,1.3122]
[1727457867970,27.51903831,157.55,157.45,1.3122]
[1727457868267,27.51903831,157.55,157.45,4.4866]
[1727457868268,3.1738,157.49,157.45,4.4866]
[1727457868963,3.1739,157.48,157.45,4.4866]
[1727457869673,3.1741,157.47,157.45,1.3122]
[1727457869970,24.36,157.53,157.44,1.3124]
[1727457870270,3.1746,157.45,157.39,25.6444]
[1727457870466,24.36,157.5,157.39,25.6444]
[1727457870762,3.174,157.48,157.42,24.36]
[1727457871857,3.1741,157.47,157.42,24.36]
[1727457872362,3.1741,157.47,157.43,3.1747]
[1727457872962,24.36,157.52,157.42,3.1749]
[1727457873166,24.36,157.52,157.39,25.6444]
[1727457873555,3.1743,157.46,157.39,25.6444]
[1727457873873,24.36,157.52,157.39,25.6444]
[1727457874266,3.174,157.48,157.39,25.6444]
[1727457874466,24.36,157.52,157.39,25.6444]
[1727457874862,24.36,157.52,157.44,3.1746]
[1727457875069,24.36,157.52,157.39,25.6444]
[1727457875258,24.36,157.52,157.39,1.2844]
[1727457875464,3.1743,157.46,157.39,1.2844]
[1727457876171,3.1743,157.46,157.43,3.1749]
[1727457876763,15.24,157.45,157.39,1.2844]
[1727457876967,15.24,157.45,157.36,15.24]
[1727457877161,3.1753,157.41,157.38,3.1758]
[1727457878867,3.1751,157.42,157.38,3.1758]
[1727457879068,3.1751,157.42,157.39,3.1755]
[1727457879269,3.19328138,157.45,157.39,3.1755]
[1727457879470,3.175,157.43,157.39,3.1755]
[1727457879671,3.22759041,157.43,157.36,1.3424]
[1727457879876,3.1756,157.4,157.36,1.3424]
[1727457880369,24.4,157.43,157.3,24.4]
[1727457881170,3.1759,157.38,157.34,3.1766]
[1727457883169,3.1759,157.38,157.34,3.1765]
[1727457883370,24.4,157.41,157.28,28.5673]
[1727457883771,3.1762,157.37,157.32,3.1769]
[1727457883980,3.15862161,157.38,157.28,28.5673]
[1727457884174,24.4,157.41,157.28,28.5673]
[1727457884369,3.1764,157.36,157.28,28.5673]
[1727457884872,3.1764,157.36,157.31,3.1771]
[1727457887171,3.1764,157.36,157.32,3.177]
[1727457888078,24.4,157.43,157.31,24.4]
[1727457888375,68.62,157.44,157.31,24.4]
[1727457888579,68.62,157.44,157.36,3.1762]
[1727457888779,68.62,157.44,157.33,24.4]
[1727457888979,68.62,157.44,157.34,1.3933]
[1727457889678,24.4,157.41,157.34,1.3933]
[1727457890475,3.1761,157.37,157.34,1.3933]
[1727457891072,3.1759,157.38,157.34,1.3933]
[1727457891273,24.4,157.41,157.34,4.5699]
[1727457891672,3.1759,157.38,157.34,4.5699]
[1727457892373,24.4,157.41,157.34,4.5699]
[1727457892680,24.4,157.44,157.34,1.3933]
[1727457893581,24.4,157.44,157.35,3.1763]
[1727457894081,3.1758,157.39,157.36,3.1763]
[1727457895580,3.1759,157.38,157.34,1.3933]
[1727457896184,3.20371577,157.39,157.34,1.3933]
[1727457896483,24.4,157.41,157.34,1.3933]
[1727457896884,24.4,157.41,157.34,4.5699]
[1727457897684,3.1761,157.38,157.34,4.5699]
[1727457897985,24.4,157.41,157.34,4.5699]
[1727457897986,3.23442998,157.39,157.34,4.5699]
[1727457898176,24.4,157.41,157.34,4.5699]
[1727457898781,3.176,157.38,157.34,4.5699]
[1727457899582,3.1761,157.37,157.34,4.5699]
[1727457900886,15.26,157.42,157.34,1.3933]
[1727457901088,80.57328744,157.47,157.34,1.3933]
[1727457901089,15.26,157.4,157.34,1.3933]
[1727457901292,3.1763,157.36,157.34,1.3933]
[1727457901482,3.19640837,157.38,157.34,1.3933]
[1727457901785,15.26,157.4,157.34,4.5699]
[1727457901978,15.26,157.42,157.34,1.3933]
[1727457902181,15.26,157.44,157.34,1.3933]
[1727457902790,15.26,157.44,157.35,15.26]
[1727457902978,15.26,157.44,157.35,16.6498]
[1727457903177,15.26,157.46,157.4,3.1754]
[1727457903385,15.26,157.46,157.37,15.26]
[1727457903782,15.26,157.46,157.41,3.1752]
[1727457903982,74.22498744,157.47,157.39,15.26]
[1727457904288,3.1745,157.45,157.42,3.1749]
[1727457904993,3.1744,157.46,157.43,3.1748]
[1727457905988,15.26,157.5,157.41,15.26]
[1727457906191,15.26,157.5,157.41,16.5916]
[1727457906388,3.174,157.48,157.44,3.1745]
[1727457907087,3.1741,157.47,157.44,3.1745]
[1727457907487,15.26,157.5,157.42,3.1749]
[1727457907694,15.26,157.48,157.41,1.3316]
[1727457907897,3.19816318,157.47,157.41,1.3316]
[1727457908696,3.1744,157.46,157.43,3.1748]
[1727457910098,3.1741,157.47,157.44,3.1745]
[1727457910295,16.3567,157.51,157.41,16.5916]
[1727457910594,15.26,157.52,157.43,15.26]
[1727457910795,15.26,157.52,157.41,1.3316]
[1727457910796,71.79903831,157.55,157.45,15.26]
[1727457910987,71.79903831,157.55,157.47,15.26]
[1727457911182,3.173,157.53,157.49,3.1736]
[1727457911398,3.173,157.53,157.47,15.26]
[1727457911888,3.173,157.53,157.49,3.1735]
[1727457912095,3.1727,157.54,157.47,16.555]
[1727457912398,3.11492897,157.61,157.51,15.26]
[1727457912605,3.11492897,157.61,157.47,1.295]
[1727457912606,16.355,157.62,157.53,15.26]
[1727457912893,3.23120271,157.61,157.53,15.26]
[1727457913096,83.88,157.64,157.53,15.26]
[1727457913293,3.1711,157.62,157.58,3.1717]
[1727457913487,87.03806671,157.64,157.54,16.6156]
[1727457913688,87.03806671,157.64,157.54,1.3556]
[1727457913689,15.26,157.61,157.54,1.3556]
[1727457913883,3.1715,157.6,157.55,3.1723]
[1727457914291,15.26,157.61,157.55,3.1723]
[1727457914597,15.26,157.63,157.54,16.6156]
[1727457914795,71.77806671,157.64,157.56,15.26]
[1727457915297,3.1711,157.62,157.57,3.1719]
[1727457915797,3.1712,157.62,157.57,3.1719]
[1727457916494,3.1712,157.62,157.58,3.1718]
[1727457916797,3.171,157.63,157.58,15.26]
[1727457916998,3.171,157.63,157.59,3.1716]
[1727457918495,15.26,157.68,157.58,15.26]
[1727457918496,3.1707,157.64,157.6,3.1714]
[1727457919402,3.1709,157.63,157.59,4.4842]
[1727457920294,15.26,157.6,157.42,285.04507242]
[1727457920492,15.26,157.61,157.52,15.26]
[1727457920788,15.26,157.61,157.54,3.1726]
[1727457920992,15.26,157.59,157.51,1.3672]
[1727457921592,18.36863356,157.59,157.51,1.3672]
[1727457921791,15.26,157.57,157.5,2.6488]
[1727457922394,3.1725,157.55,157.5,5.8222]
[1727457923400,3.1723,157.56,157.51,3.1732]
[1727457923602,1.3806,157.62,157.5,17.9088]
[1727457923603,15.26,157.6,157.5,17.9088]
[1727457924004,3.1721,157.57,157.52,3.1729]
[1727457925502,3.1722,157.56,157.52,3.1729]
[1727457926011,15.26,157.57,157.5,2.6488]
[1727457926509,15.26,157.55,157.5,1.3505]
[1727457927701,15.26,157.51,157.44,1.2539]
[1727457927907,3.1737,157.49,157.45,3.1744]
[1727457928907,3.1737,157.49,157.44,1.2539]
[1727457929110,15.26,157.51,157.44,1.2539]
[1727457929611,3.1738,157.49,157.44,4.4284]
[1727457930114,3.1735,157.5,157.44,1.2539]
[1727457930798,3.1737,157.49,157.44,1.2539]
[1727457931809,3.1737,157.49,157.45,3.1744]
[1727457933805,18.35750867,157.53,157.44,16.5139]
[1727457934003,96.55900387,157.57,157.49,15.26]
[1727457934408,3.1726,157.55,157.51,3.1731]
[1727457935205,3.1727,157.54,157.5,3.1734]
[1727457939206,71.82753224,157.58,157.49,15.26]
[1727457939415,15.26,157.57,157.48,3.1738]
[1727457939607,15.26,157.55,157.48,3.1738]
[1727457940008,3.1733,157.51,157.47,18.4339]
[1727457940412,3.1733,157.51,157.48,3.1738]
[1727457943215,3.1731,157.52,157.48,3.1738]
[1727457943912,3.1729,157.53,157.5,3.1734]
[1727457944318,3.1729,157.53,157.49,15.26]
[1727457944319,15.26,157.57,157.49,15.26]
[1727457945218,15.26,157.57,157.49,18.4336]
[1727457945718,15.26,157.57,157.49,15.26]
[1727457945919,15.26,157.57,157.5,3.1734]
[1727457945920,3.173,157.52,157.5,3.1734]
[1727457947726,3.173,157.52,157.49,18.4336]
[1727457947917,3.173,157.52,157.49,3.1736]
[1727457948124,15.26,157.57,157.48,15.26]
[1727457948622,15.26,157.57,157.48,18.4337]
[1727457948920,15.26,157.53,157.44,4.4285]
[1727457949116,15.26,157.53,157.43,2.6512]
[1727457949117,15.26,157.51,157.43,1.284]
[1727457949324,3.1745,157.45,157.43,1.284]
[1727457949523,15.26,157.49,157.43,1.284]
[1727457949726,15.26,157.49,157.43,4.4588]
[1727457950023,3.1744,157.46,157.43,4.4588]
[1727457950221,15.26,157.47,157.38,16.5224]
[1727457950818,3.24067405,157.49,157.4,15.26]
[1727457951024,1.3494,157.52,157.43,15.26]
[1727457951219,16.6094,157.52,157.43,15.26]
[1727457951423,16.6094,157.52,157.45,3.1744]
[1727457951633,3.24638953,157.51,157.44,1.3429]
[1727457951825,3.1737,157.49,157.44,4.5174]
[1727457952032,15.26,157.54,157.45,15.26]
[1727457952429,3.1735,157.5,157.47,3.1739]
[1727457952733,3.1735,157.5,157.45,15.26]
[1727457953030,3.1735,157.5,157.46,3.1742]
[1727457955031,3.1735,157.5,157.45,15.26]
[1727457955032,3.1737,157.49,157.45,18.4344]
[1727457956837,3.09834074,157.52,157.44,1.3429]
[1727457957037,15.26,157.53,157.44,1.3429]
[1727457957334,3.1742,157.47,157.44,1.3429]
[1727457957930,15.26,157.49,157.41,3.1753]
[1727457958734,3.16333536,157.48,157.41,3.1753]
[1727457959040,15.26,157.49,157.41,3.1753]
[1727457959041,15.26,157.51,157.41,15.26]
[1727457959234,97.76550433,157.56,157.43,15.26]
[1727457959439,15.26,157.54,157.43,15.26]
[1727457959635,3.1737,157.49,157.46,3.1742]
[1727457959850,15.26,157.54,157.43,15.26]
[1727457960137,15.26,157.48,157.39,1.3049]
[1727457960343,3.1744,157.46,157.39,1.3049]
[1727457960546,3.1744,157.46,157.4,15.26]
[1727457960839,3.174,157.48,157.42,15.26]
[1727457961242,1.2559,157.53,157.44,15.26]
[1727457961836,113.02550433,157.56,157.46,15.26]
[1727457962040,97.76550433,157.56,157.48,15.26]
[1727457962243,93.44641655,157.56,157.5,3.1733]
[1727457962438,3.173,157.53,157.48,15.26]
[1727457962832,15.26,157.55,157.46,17.8193]
[1727457963232,15.26,157.49,157.42,3.175]
[1727457963437,15.26,157.49,157.33,3.21992773]
[1727457963438,18.48422926,157.49,157.37,2.6217]
[1727457963743,3.1746,157.45,157.37,2.6217]
[1727457964835,1.092,157.54,157.43,15.26]
[1727457965143,16.352,157.54,157.44,15.26]
[1727457965333,16.352,157.54,157.45,1.3304]
[1727457965534,16.352,157.54,157.46,3.1742]
[1727457965735,108.70641655,157.56,157.46,15.26]
[1727457965944,3.1726,157.55,157.51,3.1732]
[1727457966544,3.1726,157.55,157.5,15.26]
[1727457966846,3.1723,157.56,157.52,3.173]
[1727457967140,16.3529,157.6,157.52,3.173]
[1727457967648,16.3529,157.6,157.51,4.5036]
[1727457967845,16.3529,157.6,157.51,1.3304]
[1727457968038,3.1724,157.56,157.51,1.3304]
[1727457968736,3.1724,157.56,157.52,3.173]
[1727457969339,1.2885,157.63,157.52,24.39]
[1727457969652,71.7015975,157.65,157.55,24.39]
[1727457970146,3.1716,157.6,157.55,24.39]
[1727457970534,3.1717,157.59,157.55,27.5624]
[1727457970941,24.39,157.63,157.53,1.3019]
[1727457971246,3.172,157.58,157.53,1.3019]
[1727457971840,3.1717,157.59,157.54,3.1725]
[1727457972253,24.39,157.63,157.54,3.1725]
[1727457972547,2.3819,157.64,157.55,3.1724]
[1727457973246,2.3819,157.64,157.53,1.3019]
[1727457973647,3.172,157.58,157.54,3.1725]
[1727457974345,24.39,157.62,157.53,1.3019]
[1727457974541,24.39,157.6,157.51,1.3304]
[1727457975246,24.39,157.6,157.51,4.5035]
[1727457975946,3.1726,157.55,157.51,4.5035]
[1727457976150,3.1726,157.55,157.52,3.173]
[1727457976548,3.1726,157.54,157.51,1.3304]
[1727457977148,3.1729,157.53,157.51,1.3304]
[1727457977549,24.39,157.6,157.51,1.3304]
[1727457977955,3.1728,157.54,157.51,1.3304]
[1727457978449,3.1729,157.53,157.51,1.3304]
[1727457978751,24.39,157.6,157.51,4.5036]
[1727457979150,3.1727,157.54,157.51,4.5036]
[1727457979352,24.39,157.6,157.51,1.3304]
[1727457980754,24.39,157.6,157.51,4.5035]
[1727457980957,24.39,157.6,157.51,1.3304]
[1727457981544,24.39,157.62,157.51,1.3304]
[1727457981952,2.3819,157.64,157.56,3.1722]
[1727457982158,12.44884926,157.64,157.56,3.1722]
[1727457982459,3.1718,157.59,157.56,3.1722]
[1727457983055,3.1718,157.58,157.56,3.1722]
[1727457983957,3.1721,157.57,157.52,24.39]
[1727457984258,24.39,157.59,157.51,1.3304]
[1727457984563,3.1728,157.54,157.51,1.3304]
[1727457984747,3.23181572,157.57,157.48,1.2971]
[1727457985056,24.39,157.6,157.49,1.3432]
[1727457985651,3.1726,157.55,157.51,3.1731]
[1727457986251,3.1724,157.56,157.49,25.7332]
[1727457986458,24.39,157.6,157.49,25.7332]
[1727457986757,3.1724,157.56,157.49,25.7332]
[1727457987862,3.1721,157.57,157.49,25.7332]
[1727457988452,3.1721,157.57,157.53,3.1727]
[1727457988655,3.1724,157.56,157.49,25.7332]
[1727457989057,3.1724,157.56,157.52,3.1729]
[1727457989264,3.1718,157.58,157.51,24.39]
[1727457989665,3.1718,157.58,157.54,3.1725]
[1727457989960,95.3319,157.64,157.51,24.39]
[1727457990166,95.3319,157.64,157.53,24.39]
[1727457990366,3.1716,157.6,157.56,3.1721]
[1727457990764,15.23,157.62,157.53,15.23]
[1727457990961,15.23,157.62,157.55,3.1724]
[1727457991368,86.1719,157.64,157.55,15.23]
[1727457991566,3.1716,157.6,157.56,3.1721]
[1727457991867,86.1719,157.64,157.55,15.23]
[1727457992778,3.1714,157.6,157.57,3.1719]
[1727457994279,3.1714,157.6,157.52,15.23]
[1727457994280,86.1719,157.64,157.56,3.1721]
[1727457994582,15.23,157.62,157.52,15.23]
[1727457994880,15.23,157.58,157.49,1.3432]
[1727457995183,15.23,157.55,157.49,1.3432]
[1727457995382,15.23,157.55,157.41,3.12426615]
[1727457995383,18.47704965,157.54,157.47,3.1739]
[1727457996068,3.1737,157.49,157.44,15.23]
[1727457996282,18.47704965,157.54,157.44,15.23]
[1727457996682,3.1732,157.51,157.46,3.1742]
[1727457997079,18.47704965,157.54,157.46,3.1742]
[1727457998178,18.47704965,157.54,157.44,15.23]
[1727457998179,3.1734,157.51,157.47,3.174]
[1727457998380,3.24704965,157.54,157.47,3.174]
[1727457998583,24.38,157.56,157.47,3.174]
[1727457998781,3.1736,157.5,157.46,3.1741]
[1727457999480,3.1737,157.49,157.45,3.1744]
[1727457999994,3.1747,157.44,157.43,1.3468]
[1727458000286,24.38,157.5,157.43,1.3468]
[1727458000490,24.38,157.53,157.43,1.3468]
[1727458000685,10.0684198,157.52,157.43,1.3468]
[1727458000887,11.1600198,157.54,157.45,24.38]